bitfinex-derivatives/quotes_BTCF0:USTF0_20250121
["timestamp","ask_amount","ask_price","bid_price","bid_amount"]
[1737478022096,0.22687548,105340.0,105330.0,0.047491]
[1737478022301,0.22687548,105340.0,105330.0,0.6850504]
[1737478022801,0.22687548,105340.0,105330.0,2.1850504]
[1737478023904,0.22687548,105340.0,105330.0,2.1860504]
[1737478024897,0.23087548,105340.0,105330.0,2.1860504]
[1737478025798,0.004,105340.0,105330.0,2.1860504]
[1737478025995,0.004,105340.0,105330.0,0.6860504]
[1737478026611,0.004,105340.0,105330.0,2.1860504]
[1737478027108,0.004,105340.0,105330.0,2.1939355]
[1737478027501,0.004,105340.0,105330.0,2.1929355]
[1737478028102,0.11339034,105350.0,105330.0,2.1929355]
[1737478028411,0.002,105340.0,105330.0,2.0627761]
[1737478028705,0.002,105340.0,105330.0,2.4235761]
[1737478029600,0.3608,105360.0,105330.0,2.4235761]
[1737478029907,0.3608,105360.0,105350.0,0.1776414]
[1737478030207,0.408277,105360.0,105350.0,0.047482]
[1737478030410,0.3608,105360.0,105350.0,0.047482]
[1737478030705,0.11339034,105370.0,105350.0,0.047478]
[1737478031100,0.52166334,105370.0,105350.0,0.047478]
[1737478031302,0.16086334,105370.0,105350.0,0.047478]
[1737478031703,0.52166334,105370.0,105350.0,0.047478]
[1737478032102,0.52266334,105370.0,105350.0,0.047478]
[1737478032716,0.52266334,105370.0,105350.0,0.049478]
[1737478033008,0.47519034,105370.0,105350.0,0.049478]
[1737478033210,0.3608,105360.0,105350.0,0.00795927]
[1737478033411,0.3608,105360.0,105350.0,0.047483]
[1737478033809,0.3608,105360.0,105350.0,0.1776424]
[1737478035308,0.47419034,105370.0,105360.0,0.047479]
[1737478035511,0.47419034,105370.0,105360.0,0.1776384]
[1737478035813,0.47419034,105370.0,105360.0,0.047479]
[1737478036908,0.3608,105370.0,105360.0,0.047479]
[1737478037309,0.3608,105370.0,105360.0,0.1776384]
[1737478037714,0.3618,105370.0,105360.0,0.1776384]
[1737478038012,0.001,105370.0,105360.0,0.047479]
[1737478038217,0.3618,105370.0,105360.0,0.047479]
[1737478038907,0.3618,105370.0,105360.0,0.05557439]
[1737478041406,0.5394334,105370.0,105360.0,0.00809539]
[1737478041716,0.047484,105350.0,105340.0,0.00014263]
[1737478041903,0.769084,105350.0,105340.0,0.00014263]
[1737478042110,0.920384,105350.0,105340.0,0.00014263]
[1737478042612,0.1513,105350.0,105340.0,0.17779003]
[1737478042814,0.408276,105370.0,105350.0,0.047483]
[1737478043011,0.408276,105370.0,105350.0,0.1776424]
[1737478043207,0.3608,105370.0,105360.0,0.1776384]
[1737478044311,0.862072,105380.0,105360.0,0.1776384]
[1737478044615,0.3618,105370.0,105360.0,0.1776384]
[1737478045605,0.47519034,105370.0,105360.0,0.1776384]
[1737478048620,0.3618,105370.0,105360.0,0.1776384]
[1737478049024,0.3618,105370.0,105360.0,1.6776384]
[1737478049518,0.3618,105370.0,105360.0,1.50814525]
[1737478049714,0.4919594,105370.0,105350.0,0.047483]
[1737478049911,0.408279,105360.0,105350.0,0.047483]
[1737478050520,0.408279,105360.0,105340.0,1.67778803]
[1737478050711,0.3608,105350.0,105340.0,1.55597947]
[1737478051822,0.3608,105350.0,105340.0,1.56497947]
[1737478052221,0.3608,105350.0,105340.0,1.55597947]
[1737478052423,0.408283,105350.0,105340.0,1.52349347]
[1737478052611,0.3608,105350.0,105340.0,1.57098147]
[1737478052818,0.3608,105360.0,105350.0,0.047483]
[1737478053820,0.40828,105360.0,105350.0,0.047483]
[1737478054214,0.40828,105360.0,105350.0,0.049483]
[1737478056820,0.72009029,105360.0,105350.0,0.049483]
[1737478057218,0.67261029,105360.0,105350.0,0.049483]
[1737478058331,0.72009129,105360.0,105350.0,0.002]
[1737478060127,0.6654656,105360.0,105350.0,0.002]
[1737478060530,0.047483,105350.0,105340.0,1.55598147]
[1737478060731,0.408283,105350.0,105340.0,1.55598147]
[1737478061621,0.408283,105350.0,105340.0,1.55798147]
[1737478062222,0.3608,105350.0,105340.0,1.55798147]
[1737478062926,0.3608,105350.0,105340.0,0.05798147]
[1737478063130,0.5154,105350.0,105340.0,0.05798147]
[1737478063527,0.64943903,105350.0,105340.0,0.00214263]
[1737478063824,0.047496,105320.0,105310.0,0.3857741]
[1737478064130,0.047501,105310.0,105300.0,0.2726283]
[1737478064326,0.047501,105310.0,105300.0,0.49441945]
[1737478064327,0.49485703,105310.0,105300.0,0.49441945]
[1737478064932,0.408301,105310.0,105300.0,0.54192445]
[1737478065229,0.36094263,105320.0,105310.0,0.047501]
[1737478065428,0.36094263,105320.0,105310.0,0.13405703]
[1737478065733,0.40843863,105320.0,105310.0,0.047501]
[1737478067431,0.40843863,105320.0,105310.0,0.053501]
[1737478067625,0.40843863,105320.0,105310.0,0.062501]
[1737478068033,0.40843863,105320.0,105310.0,0.015]
[1737478068226,0.40843863,105320.0,105310.0,0.07100265]
[1737478068624,0.61653821,105320.0,105310.0,0.07100265]
[1737478069229,0.61653821,105320.0,105310.0,0.20092158]
[1737478069425,0.61653821,105320.0,105310.0,0.07100265]
[1737478069936,0.25573821,105320.0,105310.0,0.07100265]
[1737478071335,0.00014263,105320.0,105310.0,0.07100265]
[1737478071530,0.00014263,105320.0,105310.0,0.20092158]
[1737478072133,0.00014263,105320.0,105310.0,0.56172158]
[1737478072340,0.25559558,105330.0,105320.0,0.17741493]
[1737478072637,0.01579558,105330.0,105320.0,0.68991493]
[1737478072840,0.01579558,105330.0,105320.0,2.18991493]
[1737478073435,0.01579558,105330.0,105320.0,1.699196]
[1737478073739,0.01579558,105330.0,105320.0,1.701196]
[1737478074534,0.01579558,105330.0,105320.0,1.83711493]
[1737478074739,0.408287,105340.0,105330.0,0.047492]
[1737478074938,0.408287,105340.0,105320.0,1.508]
[1737478075235,0.047487,105340.0,105330.0,0.047492]
[1737478076036,0.3608,105350.0,105340.0,0.047487]
[1737478077039,0.408282,105350.0,105340.0,0.047487]
[1737478077241,0.409282,105350.0,105340.0,0.047487]
[1737478077440,0.410282,105350.0,105340.0,0.047487]
[1737478078637,0.002,105350.0,105340.0,0.53820593]
[1737478078831,0.16962857,105370.0,105340.0,2.03820593]
[1737478079036,0.16962857,105370.0,105360.0,0.047478]
[1737478079533,0.53042857,105370.0,105360.0,0.047478]
[1737478079737,0.57790157,105370.0,105360.0,0.047478]
[1737478079941,0.57990157,105370.0,105360.0,0.047478]
[1737478080141,0.58090157,105370.0,105360.0,0.047478]
[1737478080639,0.57890157,105370.0,105350.0,0.00014263]
[1737478080840,0.3608,105360.0,105350.0,0.04762363]
[1737478081044,0.58090157,105370.0,105350.0,0.04762363]
[1737478081247,0.58090157,105370.0,105350.0,0.17754256]
[1737478081438,0.53342857,105370.0,105360.0,0.17739693]
[1737478081639,0.53342857,105370.0,105360.0,0.047478]
[1737478082143,0.53142857,105370.0,105360.0,0.047478]
[1737478082346,0.53342857,105370.0,105360.0,0.047478]
[1737478082546,0.53242857,105370.0,105360.0,0.047478]
[1737478082747,0.3628,105370.0,105360.0,0.047478]
[1737478083643,0.08371476,105380.0,105370.0,0.047474]
[1737478083849,0.29780361,105400.0,105390.0,0.047465]
[1737478084033,0.26068916,105400.0,105390.0,0.769065]
[1737478084549,0.09205485,105400.0,105390.0,1.908265]
[1737478084737,0.07535488,105400.0,105390.0,1.908265]
[1737478084945,0.07535488,105400.0,105390.0,2.219465]
[1737478085146,0.07243012,105400.0,105390.0,2.219465]
[1737478086453,0.07443012,105400.0,105390.0,2.219465]
[1737478086652,0.002,105400.0,105390.0,2.219465]
[1737478087146,0.002,105400.0,105390.0,2.34938393]
[1737478087336,0.5079,105430.0,105410.0,0.047454]
[1737478087541,0.5079,105430.0,105410.0,0.17737293]
[1737478087941,0.41657931,105440.0,105420.0,0.49071893]
[1737478087942,0.3608,105440.0,105420.0,0.49071893]
[1737478088139,0.352039,105450.0,105430.0,0.12991893]
[1737478088445,0.3046,105450.0,105420.0,0.49071893]
[1737478088645,0.3046,105450.0,105430.0,0.17736393]
[1737478088858,0.6654,105450.0,105440.0,0.12991893]
[1737478089051,0.6654,105450.0,105430.0,0.047445]
[1737478089052,0.6654,105450.0,105430.0,0.17736393]
[1737478089349,0.6654,105450.0,105440.0,0.17736093]
[1737478089350,0.3046,105450.0,105440.0,0.17736093]
[1737478089536,0.1541,105450.0,105440.0,0.53816093]
[1737478089741,0.002,105450.0,105440.0,0.17736093]
[1737478089945,0.3628,105450.0,105440.0,0.17736093]
[1737478090342,0.408233,105460.0,105440.0,0.17736093]
[1737478090546,0.002,105450.0,105440.0,0.17736093]
[1737478091256,0.3628,105450.0,105430.0,0.20468763]
[1737478091553,0.410238,105450.0,105430.0,0.33460656]
[1737478091745,0.410238,105450.0,105430.0,0.20468763]
[1737478091939,0.3608,105440.0,105430.0,0.20368763]
[1737478092139,0.3608,105440.0,105430.0,0.33360656]
[1737478092451,0.3608,105440.0,105430.0,0.34213205]
[1737478092853,0.43219548,105490.0,105430.0,1.14620598]
[1737478093049,0.38477548,105490.0,105470.0,0.53814493]
[1737478093440,0.43219448,105490.0,105470.0,0.53814493]
[1737478093641,0.43219448,105490.0,105470.0,0.53828756]
[1737478093856,0.79299448,105490.0,105470.0,0.53828756]
[1737478094052,0.84041748,105490.0,105470.0,0.36094263]
[1737478094254,0.047424,105480.0,105470.0,0.00014263]
[1737478095149,0.047424,105480.0,105470.0,0.13006156]
[1737478095449,0.567122,105490.0,105470.0,0.13006156]
[1737478095755,0.567122,105490.0,105470.0,0.13106156]
[1737478096057,0.567122,105490.0,105480.0,0.12991893]
[1737478096252,0.566122,105490.0,105470.0,0.18589841]
[1737478096442,0.1579,105490.0,105480.0,0.17734293]
[1737478096758,0.1579,105490.0,105480.0,0.66806186]
[1737478097255,0.1579,105490.0,105480.0,2.03814293]
[1737478097450,0.1579,105490.0,105480.0,2.16806186]
[1737478097656,0.1,105500.0,105480.0,2.16806186]
[1737478097854,0.1,105500.0,105490.0,0.53813793]
[1737478098460,0.37737548,105520.0,105510.0,0.04741]
[1737478098758,0.22687548,105520.0,105510.0,0.53812893]
[1737478099059,0.22687548,105520.0,105510.0,1.02884786]
[1737478099260,0.25524557,105530.0,105520.0,0.047406]
[1737478099261,0.15901773,105530.0,105520.0,0.047406]
[1737478099447,0.09252995,105530.0,105520.0,0.66804386]
[1737478099958,0.343688,105560.0,105520.0,0.66804386]
[1737478100148,0.704488,105560.0,105530.0,0.49071893]
[1737478100344,0.3608,105550.0,105530.0,0.49086156]
[1737478100650,0.408193,105550.0,105540.0,0.12991893]
[1737478100851,0.047393,105550.0,105540.0,0.12991893]
[1737478101861,0.408193,105550.0,105530.0,0.53826256]
[1737478102061,0.408193,105550.0,105530.0,0.49086156]
[1737478102361,0.047397,105540.0,105530.0,0.49086156]
[1737478103054,0.047397,105540.0,105530.0,0.13006156]
[1737478103354,0.047397,105540.0,105530.0,0.00014263]
[1737478103663,0.408197,105540.0,105530.0,0.00014263]
[1737478103954,0.408197,105540.0,105530.0,1e-08]
[1737478104156,0.53811593,105540.0,105530.0,1e-08]
[1737478104349,0.83811593,105540.0,105530.0,1e-08]
[1737478104557,0.709197,105540.0,105530.0,1e-08]
[1737478104754,0.53911593,105540.0,105530.0,1e-08]
[1737478105256,0.83911593,105540.0,105530.0,1e-08]
[1737478105559,0.04741,105510.0,105500.0,1.908213]
[1737478105755,0.6615,105530.0,105500.0,1.99071893]
[1737478106056,0.047403,105530.0,105520.0,0.047406]
[1737478106649,0.047403,105530.0,105520.0,0.408206]
[1737478107162,0.36194263,105540.0,105520.0,0.408206]
[1737478107349,0.40934063,105540.0,105520.0,0.408206]
[1737478107653,0.40834063,105540.0,105520.0,0.408206]
[1737478108161,0.04754063,105540.0,105530.0,0.408201]
[1737478108366,0.00114263,105540.0,105530.0,0.53811993]
[1737478109354,0.00114263,105540.0,105530.0,0.68901993]
[1737478109355,0.00314263,105540.0,105530.0,0.68901993]
[1737478109755,0.00114263,105540.0,105530.0,0.68901993]
[1737478109955,0.00314263,105540.0,105530.0,0.68901993]
[1737478110563,0.00314263,105540.0,105530.0,2.18901993]
[1737478111462,0.00214263,105540.0,105530.0,2.18901993]
[1737478116167,0.04953963,105540.0,105530.0,1.5]
[1737478116662,0.41033963,105540.0,105530.0,1.5]
[1737478117770,0.04953963,105540.0,105530.0,1.5]
[1737478118066,0.408194,105550.0,105530.0,1.5]
[1737478118262,0.17517291,105640.0,105600.0,0.3608]
[1737478118566,0.19413291,105640.0,105630.0,0.85151893]
[1737478118773,0.19413291,105640.0,105600.0,0.17728893]
[1737478118774,0.047362,105620.0,105610.0,0.3608]
[1737478119066,0.24148591,105640.0,105610.0,0.7216]
[1737478119268,0.14464263,105630.0,105620.0,0.3608]
[1737478119460,0.14464263,105630.0,105620.0,0.85151893]
[1737478119663,0.00014263,105630.0,105620.0,0.7216]
[1737478119869,0.00014263,105630.0,105620.0,0.3608]
[1737478120265,0.47741956,105630.0,105600.0,0.36994263]
[1737478120471,0.2945,105620.0,105610.0,0.408166]
[1737478121364,0.00014263,105630.0,105620.0,0.047361]
[1737478121670,0.33873291,105640.0,105630.0,0.047357]
[1737478121671,0.01796001,105640.0,105630.0,0.047357]
[1737478121867,0.01796001,105640.0,105630.0,1.908157]
[1737478122167,0.01796001,105640.0,105630.0,0.408157]
[1737478122674,0.01796001,105640.0,105630.0,1.908157]
[1737478122864,0.01796001,105640.0,105630.0,0.408157]
[1737478123273,0.01796001,105640.0,105630.0,0.3608]
[1737478123473,0.19523294,105640.0,105620.0,0.00014263]
[1737478123674,0.1453,105630.0,105620.0,0.00014263]
[1737478123969,0.1453,105630.0,105620.0,0.40830363]
[1737478124163,0.1453,105630.0,105610.0,0.410164]
[1737478124164,0.32257493,105630.0,105610.0,0.410164]
[1737478124564,0.32257493,105630.0,105620.0,0.047361]
[1737478124565,0.1453,105630.0,105620.0,0.047361]
[1737478124869,0.1453,105630.0,105620.0,0.408161]
[1737478126276,0.27521893,105630.0,105620.0,0.408161]
[1737478127274,0.2834,105630.0,105620.0,0.408161]
[1737478127880,0.46067493,105630.0,105620.0,0.408161]
[1737478128270,0.46067493,105630.0,105620.0,0.40733725]
[1737478128566,0.46067493,105630.0,105610.0,0.40830663]
[1737478128868,0.12991893,105620.0,105610.0,0.36094263]
[1737478129073,0.330757,105630.0,105610.0,0.40830363]
[1737478129377,0.46067593,105630.0,105620.0,0.3608]
[1737478129781,0.46067593,105630.0,105610.0,0.36094263]
[1737478129782,0.047361,105620.0,105610.0,0.36094263]
[1737478130275,0.17727993,105620.0,105610.0,0.36094263]
[1737478131071,0.047361,105620.0,105610.0,0.40830763]
[1737478131272,0.46067593,105630.0,105610.0,0.40830763]
[1737478131672,0.17727893,105620.0,105610.0,0.40830763]
[1737478132371,0.41331893,105630.0,105610.0,0.72174263]
[1737478132567,0.46936979,105630.0,105610.0,0.76910663]
[1737478133072,0.04736,105620.0,105610.0,0.76910663]
[1737478134185,0.04736,105620.0,105610.0,0.76910563]
[1737478134574,0.17727893,105620.0,105610.0,0.36194263]
[1737478135486,0.17727893,105620.0,105610.0,0.36094263]
[1737478135686,0.53807893,105620.0,105610.0,0.00014263]
[1737478135981,0.53807893,105620.0,105590.0,0.408174]
[1737478135982,0.047369,105600.0,105590.0,0.408174]
[1737478136193,0.17728793,105600.0,105590.0,0.408174]
[1737478136374,0.047374,105590.0,105580.0,0.408857]
[1737478136576,0.047374,105590.0,105580.0,0.408177]
[1737478137579,0.28932157,105600.0,105580.0,0.408177]
[1737478137779,0.33669057,105600.0,105590.0,0.3608]
[1737478138181,0.33669057,105600.0,105590.0,0.408174]
[1737478138182,0.20677164,105600.0,105590.0,0.408174]
[1737478138486,0.20677164,105600.0,105590.0,0.417174]
[1737478138688,0.21526776,105600.0,105590.0,0.417174]
[1737478138878,0.21526776,105600.0,105590.0,0.408174]
[1737478139186,0.49028669,105600.0,105590.0,0.408174]
[1737478139386,0.49028669,105600.0,105590.0,0.36209734]
[1737478139886,0.49028669,105600.0,105590.0,0.00129734]
[1737478140182,0.047374,105590.0,105580.0,0.408178]
[1737478140381,0.17729293,105590.0,105580.0,0.3608]
[1737478141385,0.047378,105580.0,105570.0,0.36953448]
[1737478141691,0.17729693,105580.0,105570.0,0.41691748]
[1737478142085,0.17729693,105580.0,105570.0,0.00014263]
[1737478142285,0.31379693,105580.0,105570.0,0.00014263]
[1737478142483,0.67659693,105580.0,105570.0,0.00014263]
[1737478142790,0.047387,105560.0,105550.0,0.408189]
[1737478142985,0.17730593,105560.0,105550.0,0.408189]
[1737478143193,0.06534701,105560.0,105550.0,0.408189]
[1737478144591,0.01796001,105560.0,105550.0,0.53810793]
[1737478144788,0.002,105580.0,105560.0,0.047387]
[1737478144789,0.049378,105580.0,105560.0,0.047387]
[1737478145099,0.24445012,105590.0,105580.0,0.047378]
[1737478145280,0.24445012,105590.0,105580.0,0.408178]
[1737478145591,0.24445012,105590.0,105580.0,0.3608]
[1737478145789,0.047383,105580.0,105560.0,0.408183]
[1737478146100,0.048383,105580.0,105570.0,0.36094263]
[1737478146587,0.047383,105580.0,105570.0,0.36094263]
[1737478146791,0.17730193,105580.0,105570.0,0.36094263]
[1737478147087,0.31410193,105580.0,105570.0,0.00014263]
[1737478147389,0.184183,105580.0,105570.0,0.00014263]
[1737478147890,0.184183,105580.0,105570.0,6.3e-07]
[1737478147891,0.97490193,105580.0,105570.0,6.3e-07]
[1737478148083,0.047392,105550.0,105540.0,0.546295]
[1737478148793,0.197085,105570.0,105540.0,0.67621393]
[1737478148996,0.04739,105560.0,105550.0,0.408191]
[1737478149494,0.04739,105560.0,105550.0,0.3608]
[1737478149695,0.047392,105550.0,105540.0,0.54943863]
[1737478149990,0.047392,105550.0,105540.0,0.54743863]
[1737478150196,0.047392,105550.0,105540.0,0.54643863]
[1737478150593,0.047388,105560.0,105550.0,0.047388]
[1737478150787,0.04752563,105570.0,105560.0,0.047387]
[1737478150981,0.00014263,105570.0,105560.0,0.53810593]
[1737478151182,0.21634616,105580.0,105560.0,0.53810593]
[1737478151389,0.21634216,105580.0,105570.0,1.908183]
[1737478151584,0.21634216,105580.0,105570.0,0.3608]
[1737478151789,0.34626109,105580.0,105570.0,0.3608]
[1737478151991,0.21634216,105580.0,105570.0,0.3608]
[1737478152494,0.21634216,105580.0,105560.0,1.86166263]
[1737478152495,0.047383,105570.0,105560.0,1.86166263]
[1737478152695,0.17730193,105570.0,105560.0,0.36094263]
[1737478152896,0.047383,105570.0,105560.0,0.36094263]
[1737478153194,0.047383,105570.0,105560.0,0.40832963]
[1737478154690,0.13208912,105570.0,105560.0,0.53824856]
[1737478154891,0.08470612,105570.0,105560.0,0.53824856]
[1737478157901,0.13208912,105570.0,105560.0,0.53824856]
[1737478158408,0.047383,105570.0,105560.0,0.53824856]
[1737478158594,0.047383,105570.0,105560.0,2.03824856]
[1737478158790,0.08470612,105580.0,105560.0,2.03824856]
[1737478159105,0.13208712,105580.0,105570.0,0.53810193]
[1737478159397,0.13208712,105580.0,105570.0,0.408183]
[1737478159601,0.13208712,105580.0,105570.0,0.3608]
[1737478160990,0.13208712,105580.0,105570.0,0.408183]
[1737478162201,0.16032249,105580.0,105570.0,0.408183]
[1737478163192,0.16032249,105580.0,105570.0,0.53810193]
[1737478163193,0.11294149,105580.0,105570.0,0.53810193]
[1737478163697,0.16031949,105580.0,105570.0,0.408183]
[1737478164003,0.16031949,105580.0,105570.0,0.3608]
[1737478164206,0.16031949,105580.0,105570.0,0.408183]
[1737478164705,0.16031949,105580.0,105570.0,0.410183]
[1737478165305,0.16031949,105580.0,105570.0,0.3628]
[1737478165505,0.29023842,105580.0,105570.0,0.002]
[1737478165708,0.16031949,105580.0,105570.0,0.003]
[1737478166408,0.29023842,105580.0,105570.0,0.003]
[1737478167310,0.29023842,105580.0,105570.0,0.3638]
[1737478167507,0.16031949,105580.0,105570.0,0.3638]
[1737478167701,0.16031949,105580.0,105570.0,0.003]
[1737478168008,0.16031949,105580.0,105570.0,0.3638]
[1737478168398,0.16031949,105580.0,105570.0,0.003]
[1737478168916,0.16884834,105580.0,105570.0,0.003]
[1737478169215,0.16884834,105580.0,105570.0,0.411183]
[1737478169508,0.16884834,105580.0,105570.0,0.003]
[1737478169708,0.29876727,105580.0,105570.0,0.003]
[1737478169915,0.42756727,105580.0,105570.0,0.003]
[1737478170101,0.29764834,105580.0,105570.0,0.3638]
[1737478170411,0.21634216,105580.0,105570.0,0.411183]
[1737478172508,0.21634216,105580.0,105570.0,0.54110193]
[1737478172509,0.16896416,105580.0,105570.0,0.54110193]
[1737478173210,0.21634216,105580.0,105570.0,0.411183]
[1737478174001,0.21634216,105580.0,105570.0,0.418183]
[1737478174204,0.21634216,105580.0,105570.0,0.3708]
[1737478174508,0.21634216,105580.0,105570.0,0.01]
[1737478174710,0.21634216,105580.0,105570.0,0.3698]
[1737478174711,0.18916382,105580.0,105570.0,0.3698]
[1737478175010,0.31908275,105580.0,105570.0,0.014]
[1737478175208,0.31908275,105580.0,105570.0,0.3748]
[1737478175598,0.31908275,105580.0,105570.0,0.3708]
[1737478175805,0.31908275,105580.0,105570.0,0.003]
[1737478176115,0.31908275,105580.0,105570.0,0.3638]
[1737478176707,0.31908275,105580.0,105570.0,0.003]
[1737478177613,0.17729693,105580.0,105570.0,0.003]
[1737478178919,0.047378,105580.0,105570.0,0.3638]
[1737478179415,0.047378,105580.0,105570.0,0.411183]
[1737478180319,0.047378,105580.0,105570.0,0.49738041]
[1737478181210,0.047378,105580.0,105570.0,0.411183]
[1737478181617,0.047378,105580.0,105570.0,0.3638]
[1737478181806,0.047378,105580.0,105570.0,0.49738041]
[1737478182006,0.00014263,105590.0,105580.0,0.047378]
[1737478182218,0.2810776,105610.0,105580.0,1.19587282]
[1737478182411,0.2810776,105610.0,105600.0,0.58056382]
[1737478182820,0.2810776,105610.0,105600.0,0.67336382]
[1737478183218,0.19678281,105620.0,105610.0,0.13356241]
[1737478183408,0.47790111,105630.0,105620.0,0.04736]
[1737478183613,0.47790111,105630.0,105620.0,0.49435741]
[1737478183814,0.47790111,105630.0,105620.0,0.53727839]
[1737478185121,0.44206714,105630.0,105620.0,0.40816]
[1737478185326,0.35910628,105630.0,105620.0,0.40816]
[1737478185915,0.35910628,105630.0,105620.0,0.53727839]
[1737478186116,0.31175028,105630.0,105620.0,0.53727839]
[1737478186431,0.31175028,105630.0,105620.0,2.03727839]
[1737478186622,0.31175028,105630.0,105620.0,2.15567839]
[1737478187125,0.11845028,105630.0,105620.0,2.15567839]
[1737478187513,0.11845028,105630.0,105620.0,2.1625621]
[1737478188210,0.22489464,105650.0,105640.0,0.047351]
[1737478188414,0.22489464,105650.0,105640.0,0.66638778]
[1737478189014,0.22489464,105650.0,105640.0,0.408151]
[1737478189328,0.19757929,105660.0,105650.0,0.047347]
[1737478189511,0.19757929,105660.0,105650.0,0.53726539]
[1737478189714,0.24492229,105660.0,105650.0,0.408147]
[1737478189915,0.48522229,105660.0,105650.0,0.408147]
[1737478190326,0.48522229,105660.0,105650.0,1.908147]
[1737478190516,0.48522229,105660.0,105650.0,2.03726539]
[1737478190827,0.48522229,105660.0,105650.0,0.53726539]
[1737478191216,0.48522229,105660.0,105650.0,0.53826539]
[1737478191725,0.48522229,105660.0,105650.0,0.53726539]
[1737478193025,0.48522229,105660.0,105650.0,0.5439476]
[1737478194319,0.19757929,105660.0,105650.0,0.5439476]
[1737478194520,0.38711584,105670.0,105650.0,0.5439476]
[1737478194727,0.38711584,105670.0,105660.0,0.48991839]
[1737478194930,0.38711584,105670.0,105660.0,0.3608]
[1737478195618,0.38711584,105670.0,105660.0,0.48991839]
[1737478196633,0.38711584,105670.0,105660.0,0.3608]
[1737478197927,0.21087684,105670.0,105660.0,0.53726139]
[1737478198721,0.173538,105670.0,105660.0,0.408143]
[1737478199027,0.173538,105670.0,105660.0,0.3608]
[1737478199222,0.173538,105670.0,105660.0,0.53726139]
[1737478200132,0.173538,105670.0,105660.0,0.408143]
[1737478200323,0.173538,105670.0,105650.0,0.40828863]
[1737478200528,0.166743,105660.0,105650.0,0.40828863]
[1737478201736,0.166743,105660.0,105650.0,0.00014263]
[1737478201938,0.047352,105640.0,105630.0,0.53727239]
[1737478202629,0.047352,105640.0,105630.0,0.48991839]
[1737478202830,0.047352,105640.0,105630.0,0.53727439]
[1737478203543,0.047352,105640.0,105630.0,0.48991839]
[1737478203836,0.047352,105640.0,105630.0,0.3608]
[1737478204039,0.047352,105640.0,105630.0,0.007]
[1737478204227,0.047352,105640.0,105630.0,0.016]
[1737478204631,0.17647039,105640.0,105630.0,0.3698]
[1737478204832,0.047352,105640.0,105630.0,0.3608]
[1737478205034,0.047356,105630.0,105620.0,0.40830163]
[1737478205234,0.170156,105630.0,105620.0,0.40830163]
[1737478206326,0.170156,105630.0,105620.0,0.53742002]
[1737478206327,0.1228,105630.0,105620.0,0.53742002]
[1737478207435,0.1228,105630.0,105620.0,0.54542002]
[1737478207845,0.1228,105630.0,105620.0,0.55442002]
[1737478208735,0.170156,105630.0,105620.0,0.42530163]
[1737478209435,0.170156,105630.0,105620.0,0.42430163]
[1737478210734,0.1228,105630.0,105620.0,2.05342002]
[1737478210943,0.1228,105630.0,105620.0,1.92430163]
[1737478211128,0.1228,105630.0,105620.0,2.05342002]
[1737478212037,0.1228,105630.0,105620.0,0.01614263]
[1737478212038,0.170156,105630.0,105620.0,0.01614263]
[1737478212244,0.1228,105630.0,105620.0,0.42430263]
[1737478212943,0.170156,105630.0,105620.0,0.42430263]
[1737478213144,0.1228,105630.0,105620.0,0.42430263]
[1737478213444,0.29066354,105650.0,105630.0,0.047352]
[1737478213639,0.29066354,105650.0,105640.0,0.3608]
[1737478213640,0.40806354,105650.0,105640.0,0.3608]
[1737478214242,0.40139163,105650.0,105640.0,0.3608]
[1737478214540,0.52326761,105650.0,105630.0,0.413152]
[1737478214848,0.57061461,105650.0,105640.0,0.3608]
[1737478215447,0.57061461,105650.0,105640.0,0.047351]
[1737478215649,0.57061461,105650.0,105640.0,0.408151]
[1737478216245,0.40436761,105650.0,105640.0,0.49423215]
[1737478216460,0.16936761,105650.0,105640.0,0.49423215]
[1737478217154,0.11984641,105650.0,105640.0,0.84163934]
[1737478217351,0.238,105680.0,105670.0,0.047338]
[1737478217545,0.238,105680.0,105670.0,0.85501915]
[1737478218053,0.174531,105690.0,105670.0,0.85501915]
[1737478218248,0.298031,105690.0,105680.0,0.3608]
[1737478218438,0.52292564,105690.0,105680.0,0.3608]
[1737478219153,0.22489464,105690.0,105680.0,0.49421415]
[1737478220050,0.22489464,105690.0,105680.0,0.54384134]
[1737478220648,0.22489464,105690.0,105680.0,0.41485038]
[1737478220847,0.34759464,105690.0,105680.0,0.41485038]
[1737478221046,0.34759464,105690.0,105680.0,0.54384134]
[1737478221252,0.39492364,105690.0,105680.0,0.41485038]
[1737478221457,0.39492364,105690.0,105680.0,0.36751738]
[1737478221945,0.39492364,105690.0,105670.0,0.3608]
[1737478221946,0.047333,105680.0,105670.0,0.3608]
[1737478224059,0.047338,105670.0,105660.0,0.40828294]
[1737478224246,0.281638,105670.0,105650.0,0.74382865]
[1737478224448,0.30313296,105660.0,105650.0,0.38302865]
[1737478224652,0.66393296,105660.0,105650.0,0.19192865]
[1737478224855,0.047347,105650.0,105640.0,0.2726283]
[1737478226054,0.047347,105650.0,105640.0,0.3199793]
[1737478226249,0.047347,105650.0,105640.0,0.047351]
[1737478226452,0.047347,105650.0,105640.0,0.408151]
[1737478227056,0.047347,105650.0,105640.0,0.417151]
[1737478227549,0.047347,105650.0,105640.0,0.53714196]
[1737478228355,0.37215251,105660.0,105650.0,0.047347]
[1737478228549,0.37215251,105660.0,105650.0,0.408147]
[1737478228753,0.37215251,105660.0,105650.0,0.53713796]
[1737478229364,0.32480951,105660.0,105650.0,0.53713796]
[1737478230155,0.38134376,105660.0,105650.0,0.53713796]
[1737478230356,0.25454376,105660.0,105650.0,0.53713796]
[1737478230751,0.25454376,105660.0,105650.0,0.53913796]
[1737478231159,0.238,105690.0,105650.0,0.83913796]
[1737478231357,0.1212,105690.0,105680.0,0.89792496]
[1737478231662,0.2207,105700.0,105690.0,0.04733]
[1737478231854,0.2207,105700.0,105690.0,0.53712096]
[1737478232556,0.1,105700.0,105690.0,0.53712096]
[1737478234064,0.1,105700.0,105690.0,0.53812096]
[1737478237467,0.1,105700.0,105690.0,0.40913]
[1737478237763,0.1,105700.0,105690.0,0.001]
[1737478237764,0.147325,105700.0,105690.0,0.001]
[1737478238161,0.147325,105700.0,105690.0,0.3618]
[1737478238360,0.147325,105700.0,105690.0,0.001]
[1737478238765,0.147325,105700.0,105690.0,0.3618]
[1737478240356,0.147325,105700.0,105690.0,0.40913]
[1737478240561,0.147325,105700.0,105690.0,0.3618]
[1737478241367,0.147325,105700.0,105690.0,0.001]